[Event "Late-Titled-Tuesday-Blitz-April-16-2024"]
[Site "Chess.com"]
[Date "2024.04.16"]
[Round "3"]
[White "biostatistician"]
[Black "kleinebeer98"]
[Result "0-1"]
[WhiteElo "2626"]
[BlackElo "2879"]
[TimeControl "180+1"]
[EndTime "14:28:18 PDT"]
[Termination "kleinebeer98 won on time"]

1. d4 {[%clk 0:03:00.7]} 1... Nf6 {[%clk 0:02:59.4]} 2. Nf3 {[%clk 0:03:00.5]}
2... Nc6 {[%clk 0:02:59.5]} 3. d5 {[%clk 0:03:00.2]} 3... Nb4 {[%clk 0:02:59.2]}
4. c4 {[%clk 0:03:00.5]} 4... e6 {[%clk 0:02:59.7]} 5. Nc3 {[%clk 0:03:00.2]}
5... c6 {[%clk 0:02:59.1]} 6. a3 {[%clk 0:02:58.4]} 6... Na6 {[%clk 0:02:57.9]}
7. e4 {[%clk 0:02:58.7]} 7... exd5 {[%clk 0:02:41.8]} 8. exd5 {[%clk 0:02:59.6]}
8... Bd6 {[%clk 0:02:32.4]} 9. b4 {[%clk 0:02:50.3]} 9... O-O {[%clk 0:02:23.1]}
10. c5 {[%clk 0:02:49.7]} 10... Bb8 {[%clk 0:02:16]} 11. d6 {[%clk 0:02:42.8]}
11... b6 {[%clk 0:02:13]} 12. Qd4 {[%clk 0:01:57.1]} 12... bxc5 {[%clk
0:01:49.2]} 13. bxc5 {[%clk 0:01:57]} 13... Qa5 {[%clk 0:01:46.3]} 14. Be3
{[%clk 0:01:51.4]} 14... Nd5 {[%clk 0:01:35.9]} 15. Bd2 {[%clk 0:01:27.1]} 15...
Qxc5 {[%clk 0:01:25.3]} 16. Nxd5 {[%clk 0:01:21.3]} 16... Qxd5 {[%clk
0:01:13.1]} 17. Qxd5 {[%clk 0:01:20.9]} 17... cxd5 {[%clk 0:01:14]} 18. Bf4
{[%clk 0:01:20.7]} 18... Nc5 {[%clk 0:01:09.4]} 19. O-O-O {[%clk 0:01:11.3]}
19... Ne4 {[%clk 0:01:03.5]} 20. Rxd5 {[%clk 0:01:10.8]} 20... Bb7 {[%clk
0:00:58.2]} 21. Rd4 {[%clk 0:01:08.9]} 21... Nxf2 {[%clk 0:00:51.6]} 22. Rg1
{[%clk 0:01:09.1]} 22... a5 {[%clk 0:00:42.3]} 23. Bb5 {[%clk 0:01:06.9]} 23...
Ba7 {[%clk 0:00:41.3]} 24. Rd2 {[%clk 0:00:20.7]} 24... Bxf3 {[%clk 0:00:25.4]}
25. gxf3 {[%clk 0:00:18.6]} 25... Nh3 {[%clk 0:00:25.4]} 26. Rg4 {[%clk
0:00:17]} 26... Nxf4 {[%clk 0:00:25.6]} 27. Rxf4 {[%clk 0:00:17.9]} 27... Be3
{[%clk 0:00:25.9]} 28. Re4 {[%clk 0:00:14.3]} 28... Bxd2+ {[%clk 0:00:25.2]} 29.
Kxd2 {[%clk 0:00:15.2]} 29... Rab8 {[%clk 0:00:24.6]} 30. a4 {[%clk 0:00:14.9]}
30... Rb6 {[%clk 0:00:24.3]} 31. Rd4 {[%clk 0:00:15.1]} 31... g6 {[%clk
0:00:20.1]} 32. Kd3 {[%clk 0:00:13.6]} 32... Kg7 {[%clk 0:00:20.2]} 33. Kc4
{[%clk 0:00:13.9]} 33... Rc8+ {[%clk 0:00:19.8]} 34. Kd5 {[%clk 0:00:14.3]}
34... Rd8 {[%clk 0:00:06.5]} 35. Re4 {[%clk 0:00:14.5]} 35... Kf6 {[%clk
0:00:04.4]} 36. Re7 {[%clk 0:00:14.2]} 36... h5 {[%clk 0:00:04.7]} 37. Rxd7
{[%clk 0:00:11.6]} 37... Rxb5+ {[%clk 0:00:04.7]} 38. Kc6 {[%clk 0:00:04.7]}
38... Rxd7 {[%clk 0:00:05.2]} 0-1

[Event "Late-Titled-Tuesday-Blitz-April-16-2024"]
[Site "Chess.com"]
[Date "2024.04.16"]
[Round "3"]
[White "emeli_chess"]
[Black "NCchamp"]
[Result "1-0"]
[WhiteElo "2462"]
[BlackElo "2240"]
[TimeControl "180+1"]
[EndTime "14:28:19 PDT"]
[Termination "emeli_chess won on time"]

1. d4 {[%clk 0:03:00.9]} 1... d5 {[%clk 0:02:59.6]} 2. c4 {[%clk 0:03:01.1]}
2... dxc4 {[%clk 0:03:00.5]} 3. Nf3 {[%clk 0:03:00.4]} 3... a6 {[%clk
0:02:59.1]} 4. a4 {[%clk 0:02:59.5]} 4... Nf6 {[%clk 0:02:56.9]} 5. e3 {[%clk
0:02:59.6]} 5... Bg4 {[%clk 0:02:57.5]} 6. Bxc4 {[%clk 0:02:58.2]} 6... e6
{[%clk 0:02:58.1]} 7. h3 {[%clk 0:02:57.4]} 7... Bh5 {[%clk 0:02:57.7]} 8. g4
{[%clk 0:02:52.2]} 8... Bg6 {[%clk 0:02:56.5]} 9. Bf1 {[%clk 0:02:52.3]} 9...
Bd6 {[%clk 0:02:55.9]} 10. Bg2 {[%clk 0:02:39.1]} 10... c6 {[%clk 0:02:55]} 11.
Nc3 {[%clk 0:02:33.2]} 11... Nbd7 {[%clk 0:02:55.4]} 12. Nh4 {[%clk 0:02:27.6]}
12... e5 {[%clk 0:02:32.2]} 13. g5 {[%clk 0:02:14.1]} 13... exd4 {[%clk
0:02:19.5]} 14. Nxg6 {[%clk 0:02:01.9]} 14... hxg6 {[%clk 0:02:09.8]} 15. gxf6
{[%clk 0:02:01.2]} 15... Qxf6 {[%clk 0:02:04.1]} 16. Qxd4 {[%clk 0:01:58.4]}
16... Be5 {[%clk 0:02:03.4]} 17. Qb4 {[%clk 0:01:39.6]} 17... a5 {[%clk
0:01:28.5]} 18. Qb3 {[%clk 0:01:35.2]} 18... Nc5 {[%clk 0:01:27.1]} 19. Qc2
{[%clk 0:01:35.3]} 19... Rd8 {[%clk 0:01:25]} 20. Ne4 {[%clk 0:01:20]} 20...
Nxe4 {[%clk 0:01:06.2]} 21. Qxe4 {[%clk 0:01:19.4]} 21... Kf8 {[%clk 0:00:57.7]}
22. Rb1 {[%clk 0:01:07.1]} 22... Rh4 {[%clk 0:00:43.8]} 23. Qf3 {[%clk
0:01:03.9]} 23... Bc3+ {[%clk 0:00:34.9]} 24. Kf1 {[%clk 0:00:46.1]} 24... Qd6
{[%clk 0:00:34.7]} 25. bxc3 {[%clk 0:00:27.5]} 25... Qd3+ {[%clk 0:00:33.4]} 26.
Kg1 {[%clk 0:00:25.3]} 26... Qxb1 {[%clk 0:00:31.5]} 27. Kh2 {[%clk 0:00:25.6]}
27... Qb3 {[%clk 0:00:28.5]} 28. e4 {[%clk 0:00:20.7]} 28... Re8 {[%clk
0:00:16.4]} 29. Bf4 {[%clk 0:00:19]} 29... Qxa4 {[%clk 0:00:10.4]} 30. Re1
{[%clk 0:00:18]} 30... Kg8 {[%clk 0:00:10.1]} 31. Bg3 {[%clk 0:00:17]} 31... Rh5
{[%clk 0:00:07.9]} 32. e5 {[%clk 0:00:16.7]} 32... Rf5 {[%clk 0:00:07.1]} 33.
Qe4 {[%clk 0:00:15.8]} 33... Qb3 {[%clk 0:00:07.3]} 34. h4 {[%clk 0:00:14]}
34... a4 {[%clk 0:00:06]} 35. Bh3 {[%clk 0:00:13.5]} 35... a3 {[%clk 0:00:05.2]}
36. Bxf5 {[%clk 0:00:13.1]} 36... gxf5 {[%clk 0:00:06.1]} 37. Qxf5 {[%clk
0:00:13.4]} 37... a2 {[%clk 0:00:07]} 38. Qe4 {[%clk 0:00:11.7]} 38... Ra8
{[%clk 0:00:05.9]} 39. Ra1 {[%clk 0:00:10.4]} 39... Qxc3 {[%clk 0:00:06.2]} 40.
Rxa2 {[%clk 0:00:04]} 40... Rxa2 {[%clk 0:00:03.4]} 41. e6 {[%clk 0:00:04.5]}
1-0

[Event "Late-Titled-Tuesday-Blitz-April-16-2024"]
[Site "Chess.com"]
[Date "2024.04.16"]
[Round "3"]
[White "SchmakAttack"]
[Black "2Coaches1Profile"]
[Result "1-0"]
[WhiteElo "2834"]
[BlackElo "2566"]
[TimeControl "180+1"]
[EndTime "14:28:21 PDT"]
[Termination "SchmakAttack won by resignation"]

1. Nf3 {[%clk 0:03:00.9]} 1... g5 {[%clk 0:02:56.9]} 2. Nxg5 {[%clk 0:02:59.3]}
2... e5 {[%clk 0:02:56.5]} 3. d4 {[%clk 0:02:53]} 3... Be7 {[%clk 0:02:55.2]} 4.
Nh3 {[%clk 0:02:20.2]} 4... e4 {[%clk 0:02:39.6]} 5. c4 {[%clk 0:02:17.7]} 5...
d5 {[%clk 0:02:31.3]} 6. cxd5 {[%clk 0:02:14.8]} 6... Bxh3 {[%clk 0:02:03.6]} 7.
gxh3 {[%clk 0:02:15.7]} 7... Qxd5 {[%clk 0:01:58.7]} 8. Nc3 {[%clk 0:02:15]}
8... Qf5 {[%clk 0:01:58.9]} 9. Qb3 {[%clk 0:02:01.1]} 9... Nd7 {[%clk
0:01:45.3]} 10. Qxb7 {[%clk 0:01:59.1]} 10... Rb8 {[%clk 0:01:44.8]} 11. Qxe4
{[%clk 0:01:58.8]} 11... Qa5 {[%clk 0:01:38.6]} 12. Rg1 {[%clk 0:01:34.3]} 12...
Ngf6 {[%clk 0:01:38.1]} 13. Qd3 {[%clk 0:01:34.5]} 13... c5 {[%clk 0:01:28.8]}
14. d5 {[%clk 0:01:06.7]} 14... Ne5 {[%clk 0:01:20.6]} 15. Qe3 {[%clk 0:00:49]}
15... Nc4 {[%clk 0:01:19.4]} 16. Qf4 {[%clk 0:00:49.1]} 16... Rb4 {[%clk
0:01:17.9]} 17. a3 {[%clk 0:00:31.6]} 17... Ra4 {[%clk 0:01:05.6]} 18. Bd2
{[%clk 0:00:22.2]} 18... Nxd5 {[%clk 0:00:37.6]} 19. Nxd5 {[%clk 0:00:19.5]}
19... Nxd2 {[%clk 0:00:37.4]} 20. Qxd2 {[%clk 0:00:19.1]} 20... Qxd2+ {[%clk
0:00:38]} 21. Kxd2 {[%clk 0:00:19.9]} 21... Rd4+ {[%clk 0:00:38.4]} 22. Kc2
{[%clk 0:00:19.9]} 22... Rxd5 {[%clk 0:00:39.3]} 23. e3 {[%clk 0:00:18.1]} 23...
Bh4 {[%clk 0:00:36.4]} 24. f4 {[%clk 0:00:15.4]} 24... Ke7 {[%clk 0:00:29.7]}
25. Bc4 {[%clk 0:00:15]} 25... Rd6 {[%clk 0:00:28.2]} 26. Rg7 {[%clk 0:00:13.4]}
26... Rf6 {[%clk 0:00:28]} 27. Rd1 {[%clk 0:00:12.8]} 27... Bf2 {[%clk
0:00:26.3]} 28. Rd2 {[%clk 0:00:11.3]} 28... Bh4 {[%clk 0:00:26]} 29. Rd5 {[%clk
0:00:11.1]} 29... h5 {[%clk 0:00:24.9]} 30. Rxc5 {[%clk 0:00:11]} 30... Rd8
{[%clk 0:00:23.4]} 31. Rc7+ {[%clk 0:00:09.1]} 31... Kd6 {[%clk 0:00:23.2]} 32.
Rgxf7 {[%clk 0:00:09.5]} 32... Rxf7 {[%clk 0:00:18.8]} 33. Rxf7 {[%clk
0:00:10.4]} 33... Rc8 {[%clk 0:00:18.6]} 34. Kd3 {[%clk 0:00:10.5]} 34... Bf2
{[%clk 0:00:17]} 35. Rf6+ {[%clk 0:00:09.3]} 35... Ke7 {[%clk 0:00:16]} 36. Re6+
{[%clk 0:00:09.9]} 36... Kd7 {[%clk 0:00:15.9]} 37. Rh6 {[%clk 0:00:10.5]} 37...
Rd8 {[%clk 0:00:14.5]} 38. Rxh5 {[%clk 0:00:09.8]} 38... Kc7+ {[%clk 0:00:14.6]}
39. Rd5 {[%clk 0:00:09.4]} 39... Re8 {[%clk 0:00:13.7]} 40. Re5 {[%clk 0:00:10]}
40... Rh8 {[%clk 0:00:13.4]} 41. Be6 {[%clk 0:00:10.5]} 41... Kd6 {[%clk
0:00:11]} 42. Bg4 {[%clk 0:00:10.8]} 42... Rb8 {[%clk 0:00:10.7]} 43. b4 {[%clk
0:00:10]} 43... Rf8 {[%clk 0:00:08.8]} 44. Ke2 {[%clk 0:00:10.3]} 44... Bh4
{[%clk 0:00:08.3]} 45. Ra5 {[%clk 0:00:10.6]} 45... Rf7 {[%clk 0:00:07.7]} 46.
Kf3 {[%clk 0:00:11]} 46... Bf6 {[%clk 0:00:07.1]} 47. Rf5 {[%clk 0:00:09.7]}
47... Bb2 {[%clk 0:00:06.8]} 48. Rxf7 {[%clk 0:00:09.9]} 1-0

[Event "Late-Titled-Tuesday-Blitz-April-16-2024"]
[Site "Chess.com"]
[Date "2024.04.16"]
[Round "3"]
[White "FontVella8"]
[Black "Orest_Vovk"]
[Result "1-0"]
[WhiteElo "2754"]
[BlackElo "2541"]
[TimeControl "180+1"]
[EndTime "14:28:21 PDT"]
[Termination "FontVella8 won by resignation"]

1. e4 {[%clk 0:02:55.1]} 1... Nc6 {[%clk 0:02:56.4]} 2. Nf3 {[%clk 0:02:53.4]}
2... d5 {[%clk 0:02:55.4]} 3. exd5 {[%clk 0:02:53.5]} 3... Qxd5 {[%clk
0:02:55.6]} 4. Nc3 {[%clk 0:02:54.1]} 4... Qa5 {[%clk 0:02:55.7]} 5. Bb5 {[%clk
0:02:52.7]} 5... Bd7 {[%clk 0:02:55.6]} 6. d4 {[%clk 0:02:52.6]} 6... O-O-O
{[%clk 0:02:55.9]} 7. Bd2 {[%clk 0:02:51.7]} 7... a6 {[%clk 0:02:55.3]} 8. Ba4
{[%clk 0:02:50.6]} 8... Qh5 {[%clk 0:02:54.1]} 9. d5 {[%clk 0:02:46.7]} 9... Ne5
{[%clk 0:02:51.1]} 10. Bxd7+ {[%clk 0:02:45.9]} 10... Rxd7 {[%clk 0:02:50]} 11.
Nd4 {[%clk 0:02:31.6]} 11... Qxd1+ {[%clk 0:02:46.5]} 12. Rxd1 {[%clk
0:02:30.8]} 12... e6 {[%clk 0:02:24.2]} 13. O-O {[%clk 0:02:19.4]} 13... exd5
{[%clk 0:02:02.5]} 14. Rfe1 {[%clk 0:02:19.1]} 14... Nc6 {[%clk 0:01:43.2]} 15.
Re8+ {[%clk 0:01:49.5]} 15... Rd8 {[%clk 0:01:36.6]} 16. Rxd8+ {[%clk
0:01:49.7]} 16... Nxd8 {[%clk 0:01:36.4]} 17. Nxd5 {[%clk 0:01:49.1]} 17... Ne7
{[%clk 0:01:33]} 18. Nxe7+ {[%clk 0:01:44.8]} 18... Bxe7 {[%clk 0:01:32.6]} 19.
Bf4 {[%clk 0:01:45.5]} 19... Bf6 {[%clk 0:01:31]} 20. Kf1 {[%clk 0:01:06.5]}
20... Bxd4 {[%clk 0:01:21.3]} 21. Rxd4 {[%clk 0:01:06.1]} 21... Ne6 {[%clk
0:01:21.7]} 22. Re4 {[%clk 0:01:06.5]} 22... Nxf4 {[%clk 0:01:13.5]} 23. Rxf4
{[%clk 0:01:06.4]} 23... f6 {[%clk 0:01:13.5]} 24. Ke2 {[%clk 0:01:06.6]} 24...
Re8+ {[%clk 0:01:12.4]} 25. Kd3 {[%clk 0:01:06.3]} 25... Re1 {[%clk 0:01:08.4]}
26. Re4 {[%clk 0:01:05.3]} 26... Rxe4 {[%clk 0:01:04.6]} 27. Kxe4 {[%clk
0:01:05.5]} 27... Kd7 {[%clk 0:01:05.2]} 28. Kd5 {[%clk 0:01:05.4]} 28... c6+
{[%clk 0:01:04.1]} 29. Kc5 {[%clk 0:01:05.4]} 29... Kc7 {[%clk 0:01:04.2]} 30.
c4 {[%clk 0:01:02.1]} 30... b6+ {[%clk 0:01:04.4]} 31. Kd4 {[%clk 0:01:02.5]}
31... Kd6 {[%clk 0:01:04.1]} 32. c5+ {[%clk 0:00:59.5]} 32... bxc5+ {[%clk
0:00:48.5]} 33. Kc4 {[%clk 0:00:59.6]} 33... f5 {[%clk 0:00:45]} 34. f4 {[%clk
0:00:58.5]} 34... h6 {[%clk 0:00:42.9]} 35. h4 {[%clk 0:00:43.1]} 35... g6
{[%clk 0:00:39.5]} 36. g3 {[%clk 0:00:39.3]} 36... a5 {[%clk 0:00:32.3]} 37. b3
{[%clk 0:00:34.4]} 37... h5 {[%clk 0:00:20.8]} 38. a3 {[%clk 0:00:32.3]} 38...
Kd7 {[%clk 0:00:18.5]} 39. Kxc5 {[%clk 0:00:30.6]} 39... Kc7 {[%clk 0:00:18.6]}
40. a4 {[%clk 0:00:14.9]} 40... Kb7 {[%clk 0:00:18.4]} 41. b4 {[%clk 0:00:10.7]}
41... axb4 {[%clk 0:00:14.7]} 42. Kxb4 {[%clk 0:00:11.6]} 42... Kb6 {[%clk
0:00:13.1]} 43. a5+ {[%clk 0:00:08.5]} 43... Ka6 {[%clk 0:00:13.4]} 44. Kc5
{[%clk 0:00:09.2]} 44... Kxa5 {[%clk 0:00:14.3]} 45. Kxc6 {[%clk 0:00:09.9]}
45... Kb4 {[%clk 0:00:15.2]} 46. Kd5 {[%clk 0:00:10]} 46... Kc3 {[%clk
0:00:15.3]} 47. Ke5 {[%clk 0:00:10.6]} 47... Kd3 {[%clk 0:00:15.8]} 48. Kf6
{[%clk 0:00:11.5]} 48... Ke4 {[%clk 0:00:13.3]} 49. Kxg6 {[%clk 0:00:11.5]}
49... Kf3 {[%clk 0:00:14.2]} 50. Kxf5 {[%clk 0:00:11.1]} 50... Kxg3 {[%clk
0:00:14.1]} 51. Kg5 {[%clk 0:00:11.7]} 1-0

[Event "Late-Titled-Tuesday-Blitz-April-16-2024"]
[Site "Chess.com"]
[Date "2024.04.16"]
[Round "3"]
[White "LUISMIGUELOV"]
[Black "FREZZY23"]
[Result "1-0"]
[WhiteElo "2190"]
[BlackElo "2398"]
[TimeControl "180+1"]
[EndTime "14:28:24 PDT"]
[Termination "LUISMIGUELOV won on time"]

1. e4 {[%clk 0:02:59.1]} 1... c5 {[%clk 0:02:49.4]} 2. d4 {[%clk 0:02:57.8]}
2... cxd4 {[%clk 0:02:46.2]} 3. c3 {[%clk 0:02:58.3]} 3... Nf6 {[%clk
0:02:44.7]} 4. e5 {[%clk 0:02:56.8]} 4... Nd5 {[%clk 0:02:43.3]} 5. Qxd4 {[%clk
0:02:57.4]} 5... e6 {[%clk 0:02:42.8]} 6. Bc4 {[%clk 0:02:54.6]} 6... Nc6 {[%clk
0:02:42.7]} 7. Qe4 {[%clk 0:02:53.7]} 7... Nde7 {[%clk 0:02:41.5]} 8. f4 {[%clk
0:02:50.6]} 8... Ng6 {[%clk 0:02:41.1]} 9. Nf3 {[%clk 0:02:47.4]} 9... Qb6
{[%clk 0:02:36.7]} 10. Bb3 {[%clk 0:02:34.2]} 10... Bc5 {[%clk 0:02:28.5]} 11.
Nbd2 {[%clk 0:02:28.5]} 11... O-O {[%clk 0:02:14.7]} 12. Nc4 {[%clk 0:02:28.1]}
12... Qc7 {[%clk 0:02:14.6]} 13. Be3 {[%clk 0:02:24.5]} 13... f5 {[%clk
0:01:56.3]} 14. exf6 {[%clk 0:02:19]} 14... Bxe3 {[%clk 0:01:55.2]} 15. fxg7
{[%clk 0:02:08.5]} 15... Rxf4 {[%clk 0:01:51.5]} 16. Qxe3 {[%clk 0:02:05.8]}
16... d5 {[%clk 0:01:51.2]} 17. Ncd2 {[%clk 0:01:56.8]} 17... Nce5 {[%clk
0:01:20.2]} 18. O-O {[%clk 0:01:50.2]} 18... Nxf3+ {[%clk 0:01:13.4]} 19. Nxf3
{[%clk 0:01:49.5]} 19... Bd7 {[%clk 0:01:08.8]} 20. Rae1 {[%clk 0:01:47.9]}
20... Re4 {[%clk 0:01:00.6]} 21. Qf2 {[%clk 0:01:40.5]} 21... Bb5 {[%clk
0:00:22]} 22. Ng5 {[%clk 0:01:28.5]} 22... Rf4 {[%clk 0:00:09.3]} 23. Nxe6
{[%clk 0:01:27.4]} 23... Rxf2 {[%clk 0:00:08.7]} 24. Nxc7 {[%clk 0:01:27.2]}
24... Rxf1+ {[%clk 0:00:09.2]} 25. Rxf1 {[%clk 0:01:27.1]} 25... Bxf1 {[%clk
0:00:09.9]} 26. Nxa8 {[%clk 0:01:26]} 26... Bc4 {[%clk 0:00:07.9]} 27. Nc7
{[%clk 0:01:22.9]} 27... Nf4 {[%clk 0:00:05.9]} 28. g3 {[%clk 0:01:19]} 28...
Nh3+ {[%clk 0:00:04.9]} 29. Kg2 {[%clk 0:01:17.9]} 29... Ng5 {[%clk 0:00:04.7]}
30. Nxd5 {[%clk 0:01:17.6]} 30... Bxb3 {[%clk 0:00:04.4]} 31. axb3 {[%clk
0:01:16.8]} 31... Ne4 {[%clk 0:00:05.2]} 32. Kf3 {[%clk 0:01:06.7]} 32... Nd2+
{[%clk 0:00:05.4]} 33. Kf4 {[%clk 0:01:03.4]} 33... Nxb3 {[%clk 0:00:06.3]} 34.
Nc7 {[%clk 0:00:49.6]} 34... Kxg7 {[%clk 0:00:04.8]} 35. Nb5 {[%clk 0:00:49.3]}
35... a6 {[%clk 0:00:04.2]} 36. Nd6 {[%clk 0:00:48.3]} 36... b5 {[%clk
0:00:04.7]} 37. Ne8+ {[%clk 0:00:44]} 37... Kf7 {[%clk 0:00:04.3]} 38. Nc7
{[%clk 0:00:44.2]} 38... Nc5 {[%clk 0:00:03.5]} 39. b4 {[%clk 0:00:42.3]} 39...
Na4 {[%clk 0:00:03.7]} 40. Nxa6 {[%clk 0:00:41]} 40... Nxc3 {[%clk 0:00:03.8]}
41. Nc7 {[%clk 0:00:40.7]} 41... Ke7 {[%clk 0:00:03]} 42. g4 {[%clk 0:00:35.3]}
42... Kd6 {[%clk 0:00:02.1]} 43. Ne8+ {[%clk 0:00:34.5]} 43... Ke7 {[%clk
0:00:02.3]} 44. Ng7 {[%clk 0:00:33.7]} 44... Nd5+ {[%clk 0:00:02]} 45. Ke5
{[%clk 0:00:29.5]} 45... Nxb4 {[%clk 0:00:02.3]} 46. Kd4 {[%clk 0:00:28.4]}
46... Nc6+ {[%clk 0:00:02.4]} 47. Kc3 {[%clk 0:00:22.9]} 47... Kf6 {[%clk
0:00:02.1]} 48. Nf5 {[%clk 0:00:21.9]} 1-0

[Event "Late-Titled-Tuesday-Blitz-April-16-2024"]
[Site "Chess.com"]
[Date "2024.04.16"]
[Round "3"]
[White "Zapateado"]
[Black "rionelG"]
[Result "1-0"]
[WhiteElo "2399"]
[BlackElo "2181"]
[TimeControl "180+1"]
[EndTime "14:28:25 PDT"]
[Termination "Zapateado won by resignation"]

1. c4 {[%clk 0:02:48.1]} 1... c5 {[%clk 0:02:57.4]} 2. Nc3 {[%clk 0:02:48.5]}
2... Nc6 {[%clk 0:02:57.7]} 3. g3 {[%clk 0:02:49]} 3... g6 {[%clk 0:02:58.1]} 4.
Bg2 {[%clk 0:02:49.6]} 4... Bg7 {[%clk 0:02:58.8]} 5. e4 {[%clk 0:02:50.3]} 5...
d6 {[%clk 0:02:54]} 6. Nge2 {[%clk 0:02:50.3]} 6... Nd4 {[%clk 0:02:41.9]} 7.
O-O {[%clk 0:02:46.5]} 7... e6 {[%clk 0:02:40.8]} 8. d3 {[%clk 0:02:46.4]} 8...
Ne7 {[%clk 0:02:40.6]} 9. Be3 {[%clk 0:02:46.4]} 9... Nec6 {[%clk 0:02:39.9]}
10. a3 {[%clk 0:02:46.6]} 10... O-O {[%clk 0:02:39.6]} 11. Rb1 {[%clk
0:02:47.1]} 11... b6 {[%clk 0:02:36.6]} 12. b4 {[%clk 0:02:45.2]} 12... Bb7
{[%clk 0:02:33.1]} 13. b5 {[%clk 0:02:43.5]} 13... Ne7 {[%clk 0:02:25.9]} 14. f4
{[%clk 0:02:42.6]} 14... Rb8 {[%clk 0:02:13.3]} 15. Bf2 {[%clk 0:02:42.3]} 15...
f5 {[%clk 0:02:11.4]} 16. Nxd4 {[%clk 0:02:42.2]} 16... cxd4 {[%clk 0:02:06.3]}
17. Ne2 {[%clk 0:02:42.7]} 17... fxe4 {[%clk 0:02:05.7]} 18. Nxd4 {[%clk
0:02:35]} 18... Bxd4 {[%clk 0:01:53.2]} 19. Bxd4 {[%clk 0:02:35.9]} 19... exd3
{[%clk 0:01:41.9]} 20. Qxd3 {[%clk 0:02:25.8]} 20... Bxg2 {[%clk 0:01:41]} 21.
Kxg2 {[%clk 0:02:26.7]} 21... Nf5 {[%clk 0:01:39.2]} 22. Ba1 {[%clk 0:02:15.4]}
22... Qd7 {[%clk 0:01:34.5]} 23. Rfe1 {[%clk 0:02:14.2]} 23... Rfe8 {[%clk
0:01:29.1]} 24. Rbd1 {[%clk 0:02:13.5]} 24... Rbd8 {[%clk 0:01:27.1]} 25. a4
{[%clk 0:02:01.6]} 25... Qc7 {[%clk 0:01:12.5]} 26. g4 {[%clk 0:01:50.4]} 26...
Ng7 {[%clk 0:01:01.6]} 27. Qd4 {[%clk 0:01:48.3]} 27... Re7 {[%clk 0:00:56.6]}
28. a5 {[%clk 0:01:35.2]} 28... d5 {[%clk 0:00:54.8]} 29. axb6 {[%clk
0:01:07.7]} 29... axb6 {[%clk 0:00:53.9]} 30. Qe3 {[%clk 0:00:54.6]} 30... dxc4
{[%clk 0:00:38.8]} 31. Rxd8+ {[%clk 0:00:52]} 31... Qxd8 {[%clk 0:00:38.4]} 32.
Bf6 {[%clk 0:00:52.5]} 32... Qd5+ {[%clk 0:00:37.8]} 33. Kg1 {[%clk 0:00:45.7]}
33... Re8 {[%clk 0:00:34.1]} 34. Qxb6 {[%clk 0:00:45.3]} 34... Qd2 {[%clk
0:00:14.4]} 35. Qf2 {[%clk 0:00:27.2]} 35... Qd3 {[%clk 0:00:12.8]} 36. b6
{[%clk 0:00:19.9]} 36... h5 {[%clk 0:00:09.8]} 37. b7 {[%clk 0:00:11.2]} 37...
Qd5 {[%clk 0:00:05.9]} 38. Qg2 {[%clk 0:00:10.1]} 38... Qxg2+ {[%clk 0:00:04.8]}
39. Kxg2 {[%clk 0:00:11]} 39... Rb8 {[%clk 0:00:03.4]} 40. Rb1 {[%clk
0:00:11.6]} 40... Rxb7 {[%clk 0:00:01.9]} 41. Rxb7 {[%clk 0:00:11.6]} 41... hxg4
{[%clk 0:00:02.8]} 42. Rxg7+ {[%clk 0:00:11.7]} 42... Kf8 {[%clk 0:00:03.7]} 43.
Rc7 {[%clk 0:00:11.8]} 1-0

[Event "Late-Titled-Tuesday-Blitz-April-16-2024"]
[Site "Chess.com"]
[Date "2024.04.16"]
[Round "3"]
[White "Aragon"]
[Black "rajesh1464"]
[Result "0-1"]
[WhiteElo "2058"]
[BlackElo "2352"]
[TimeControl "180+1"]
[EndTime "14:28:25 PDT"]
[Termination "rajesh1464 won by resignation"]

1. e4 {[%clk 0:03:00.9]} 1... c5 {[%clk 0:02:58.8]} 2. Nf3 {[%clk 0:03:00.4]}
2... d6 {[%clk 0:02:59]} 3. d4 {[%clk 0:03:00.1]} 3... cxd4 {[%clk 0:02:59.9]}
4. Nxd4 {[%clk 0:03:00]} 4... Nf6 {[%clk 0:03:00.8]} 5. Nc3 {[%clk 0:02:59.6]}
5... g6 {[%clk 0:03:01.7]} 6. Be3 {[%clk 0:02:58.6]} 6... Bg7 {[%clk 0:03:02.6]}
7. f3 {[%clk 0:02:58.9]} 7... O-O {[%clk 0:03:02.7]} 8. Qd2 {[%clk 0:02:59.4]}
8... Nc6 {[%clk 0:03:02.4]} 9. O-O-O {[%clk 0:02:59.2]} 9... Nxd4 {[%clk
0:02:54.7]} 10. Bxd4 {[%clk 0:02:58.4]} 10... Be6 {[%clk 0:02:55.4]} 11. Kb1
{[%clk 0:02:57]} 11... Qc7 {[%clk 0:02:55.3]} 12. Nd5 {[%clk 0:02:50.9]} 12...
Bxd5 {[%clk 0:02:32.3]} 13. exd5 {[%clk 0:02:47.6]} 13... Rfc8 {[%clk
0:02:28.8]} 14. c4 {[%clk 0:02:43.8]} 14... a6 {[%clk 0:02:07.6]} 15. h4 {[%clk
0:02:23.9]} 15... b5 {[%clk 0:02:04.1]} 16. cxb5 {[%clk 0:02:19]} 16... Nxd5
{[%clk 0:01:59.8]} 17. Bxg7 {[%clk 0:02:15.3]} 17... Kxg7 {[%clk 0:01:59.1]} 18.
h5 {[%clk 0:02:01.4]} 18... Ne3 {[%clk 0:01:09.4]} 19. hxg6 {[%clk 0:01:16.9]}
19... hxg6 {[%clk 0:00:52.5]} 20. Re1 {[%clk 0:00:24.3]} 20... Qc2+ {[%clk
0:00:39.7]} 21. Qxc2 {[%clk 0:00:23.9]} 21... Nxc2 {[%clk 0:00:39.8]} 22. Rc1
{[%clk 0:00:20.9]} 22... Nb4 {[%clk 0:00:33.1]} 23. Rxc8 {[%clk 0:00:17.3]}
23... Rxc8 {[%clk 0:00:33]} 24. bxa6 {[%clk 0:00:17.4]} 24... Ra8 {[%clk
0:00:32.3]} 25. a3 {[%clk 0:00:17.3]} 25... Nxa6 {[%clk 0:00:32.3]} 26. Bxa6
{[%clk 0:00:17.8]} 26... Rxa6 {[%clk 0:00:33.1]} 27. Rc1 {[%clk 0:00:17.7]}
27... d5 {[%clk 0:00:29.7]} 28. Ka2 {[%clk 0:00:18.6]} 28... e5 {[%clk
0:00:26.8]} 29. b4 {[%clk 0:00:17.6]} 29... f5 {[%clk 0:00:25.6]} 30. Kb3 {[%clk
0:00:17.9]} 30... e4 {[%clk 0:00:24.3]} 31. b5 {[%clk 0:00:18.3]} 31... Re6
{[%clk 0:00:23.8]} 32. f4 {[%clk 0:00:16.9]} 32... d4 {[%clk 0:00:21.7]} 33. a4
{[%clk 0:00:17.1]} 33... d3 {[%clk 0:00:19]} 34. Rd1 {[%clk 0:00:13.7]} 34... e3
{[%clk 0:00:18.2]} 35. Kc3 {[%clk 0:00:11.7]} 35... d2 {[%clk 0:00:16.7]} 36. a5
{[%clk 0:00:09.6]} 36... e2 {[%clk 0:00:16.9]} 37. Kxd2 {[%clk 0:00:08.9]} 37...
exd1=Q+ {[%clk 0:00:15.1]} 38. Kxd1 {[%clk 0:00:09.8]} 38... Kf6 {[%clk
0:00:11.7]} 39. Kc2 {[%clk 0:00:09.4]} 39... Ke7 {[%clk 0:00:10.4]} 40. a6
{[%clk 0:00:09.8]} 40... Kd7 {[%clk 0:00:09.5]} 41. Kc3 {[%clk 0:00:07.8]} 41...
Kc7 {[%clk 0:00:09.6]} 42. Kc4 {[%clk 0:00:05.3]} 42... Kb6 {[%clk 0:00:09.5]}
43. Kd5 {[%clk 0:00:05.7]} 43... Re4 {[%clk 0:00:09.6]} 0-1